Cogmind - Beta 13 @@@ ROGUE MODE // 2024.04.12 @ 13:17:47 Player: Vriska Result: Destroyed by 0L-7F4(R) with Subdweller Beam Cannon Performance ------------- Evolutions (0) 0 Regions Visited (3) 600 Robots Destroyed (20) 100 Value Destroyed (473) 473 Prototype IDs (0) 0 Alien Tech Used (0) 0 Bonus (0) 0 TOTAL SCORE: 1173 Bonus ------- None Cogmind --------- Core Integrity 0/250 Matter 220/300 Energy 100/100 System Corruption 0% Temperature Cool (9) Movement Walking (120) Location -10/Subcaves Parts ------- > --- POWER (1) -------- (None) > --- PROPULSION (2) --- Aluminum Leg > --- UTILITY (2) ------ Improved Terrain Scanner Terrain Scan Processor > --- WEAPON (2) ------- (None) > --- INVENTORY (5) ---- Heat Sink Targeting Computer Targeting Computer Targeting Computer Makeshift Light Armor Plating Peak State ------------ > --- POWER ------------ Ion Engine > --- PROPULSION ------- Aluminum Leg Aluminum Leg > --- UTILITY ---------- Improved Terrain Scanner Terrain Scan Processor > --- WEAPON ----------- Mini Grenade Launcher Datajack > --- INVENTORY -------- Heat Sink Targeting Computer Targeting Computer Targeting Computer [Rating: 11] Favorites ----------- Power Ion Engine Engine Ion Engine Propulsion Aluminum Leg Leg Aluminum Leg Utility Small Storage Unit Device Improved Terrain Scanner Storage Small Storage Unit Processor Signal Interpreter Weapon Assault Rifle Energy Gun Medium Laser Ballistic Gun Assault Rifle Launcher Mini Grenade Launcher Special Melee Weapon Datajack Build | -11 -10 -10 -10 ------- Run | Yrd Mat Min Sub Slots Evolved . | . . . . Power . | . . . . Propulsion . | . . . . Utility . | . . . . Weapon . | . . . . Parts Attached 30 | 5 8 16 1 Power 3 | 1 1 1 . Engine 3 | 1 1 1 . Core . | . . . . Reactor . | . . . . Propulsion 11 | 1 2 7 1 Treads . | . . . . Leg 11 | 1 2 7 1 Wheel . | . . . . Hover . | . . . . Flight . | . . . . Utility 8 | 1 2 5 . Device 3 | . 1 2 . Storage 2 | 1 . 1 . Processor 3 | . 1 2 . Hackware . | . . . . Protection . | . . . . Artifact . | . . . . Weapon 8 | 2 3 3 . Energy Gun 2 | 1 1 . . Energy Cannon . | . . . . Ballistic Gun 3 | 1 2 . . Ballistic Cannon . | . . . . Launcher 2 | . . 2 . Special Weapon . | . . . . Impact Weapon . | . . . . Slashing Weapon . | . . . . Piercing Weapon . | . . . . Special Melee Weapon 1 | . . 1 . Unidentified Prototypes . | . . . . Parts Lost 10 | . 1 4 5 Power 1 | . . . 1 Propulsion 4 | . . 2 2 Utility . | . . . . Weapon 5 | . 1 2 2 Highest Loss Streak 4 | . 1 4 4 To Critical Strikes 1 | . . . 1 Average Slot Usage (%) 92 | . 88 97 69 Engine 12 | . 14 13 4 Leg 24 | . 19 27 16 Device 7 | . 1 8 14 Storage 6 | . 14 4 . Processor 13 | . 10 14 14 Energy Gun 2 | . 11 . . Ballistic Gun 8 | . 15 7 . Launcher 8 | . . 11 13 Special Melee Weapon 6 | . . 8 4 Naked Turns . | . . . . Heaviest Build 15 | 14 15 14 8 Greatest Support 20 | 10 20 20 20 Greatest Overweight (x) 3 | 3 1 . 2 Average Overweight (x) . | 1 . . . Largest Inventory Capacity 8 | 8 8 8 5 Average Capacity 6 | 7 8 6 5 Most Carried 8 | 4 8 8 5 Average Carried 5 | 2 5 5 4 Final Capacity 8 | 8 8 5 5 Final Carried 8 | 2 8 4 5 Class Distribution -------------------- 54% | Scavenger-Mutant 45% | Mutant Dominant Class ---------------- Mutant | -10/Materials Scavenger-Mutant | -10/Mines Scavenger-Mutant | -10/Subcaves Resources | -11 -10 -10 -10 ----------- Run | Yrd Mat Min Sub Matter Collected 789 | 198 186 360 45 Remotely . | . . . . Salvage Created 535 | . 342 139 54 Parts 38 | . 26 5 7 Haulers Intercepted 2 | . 2 . . Recyclers Shooed . | . . . . Parts Field Recycled . | . . . . Retrieved Matter . | . . . . Parts Self-Destructed 16 | . . . 16 Prevented . | . . . . Kills | -11 -10 -10 -10 ------- Run | Yrd Mat Min Sub Combat Hostiles Destroyed 21 | . 6 11 4 Guns 10 | . 6 4 . AOE 11 | . . 7 4 Classes Destroyed 8 | . 6 1 1 Worker 1 | . 1 . . Builder 1 | . 1 . . Hauler 2 | . 2 . . Watcher 1 | . 1 . . Swarmer 6 | . 3 3 . Grunt 7 | . 3 2 2 Subdweller 2 | . . . 2 Assembled 6 | . . 6 . Best Kill Streak 4 | . 4 3 4 Combat Bots Only 4 | . 3 3 4 Max Kills in Single Turn 2 | . 2 2 1 Gunslinging . | . . . . Exploded 2 | . . 2 1 Melee . | . . . . Uniques/NPCs Destroyed . | . . . . Combat | -11 -10 -10 -10 -------- Run | Yrd Mat Min Sub Hostile Shots Fired 91 | . 38 30 23 Missed 30 | . 15 6 9 Damage Taken 1249 | . 242 671 336 Core 252 | . 58 102 92 Absorbed by Shields . | . . . . Regen/Repaired (Parts) 96 | . 96 . . Core Remaining (%) 100 | 100 . . . Volleys Fired 67 | . 23 30 14 Largest 2 | . 2 2 1 Hottest 70 | . 70 60 30 Shots Fired 108 | . 45 49 14 Gun 85 | . 45 40 . Cannon . | . . . . Launcher 23 | . . 9 14 Special . | . . . . Kinetic 63 | . 23 40 . Thermal 18 | . 18 . . Explosive 23 | . . 9 14 Electromagnetic 4 | . 4 . . Robot Hit Streak 7 | . 5 6 7 Robot Miss Streak 4 | . 3 4 1 Penetration Max . | . . . . Secondary Targets 2 | . 1 1 . Max Gunslinging Chain 1 | . 1 1 . Shots Hit Robots 63 | . 29 27 7 Core Hits 47 | . 17 22 8 Critical Kills . | . . . . Critical Parts Destroyed . | . . . . Critical Strikes . | . . . . Melee Attacks 4 | . . 4 . Impact . | . . . . Slashing . | . . . . Piercing . | . . . . Sneak Attacks 4 | . . 4 . Combat Hostiles . | . . . . Follow-up Attacks . | . . . . Damage Inflicted 1683 | . 415 646 622 Guns 659 | . 415 244 . Cannons . | . . . . Explosions 1024 | . . 402 622 Melee . | . . . . Ramming . | . . . . Kinetic 499 | . 255 244 . Thermal 138 | . 138 . . Explosive 1024 | . . 402 622 Electromagnetic 22 | . 22 . . Impact . | . . . . Slashing . | . . . . Piercing . | . . . . Highest Corruption . | . . . . Average Corruption . | . . . . Corruption Purged . | . . . . Corruption Blocked . | . . . . Overload Shots . | . . . . Overflow Damage 4 | . . . 4 Projectiles . | . . . . Explosions 4 | . . . 4 Melee . | . . . . Knockbacks . | . . . . Impact . | . . . . Kinetic . | . . . . Secondary . | . . . . Self-Inflicted Damage 116 | . . 89 27 Shots 5 | . . 4 1 Rammed . | . . . . Targets Rammed . | . . . . Kicked . | . . . . Crushed . | . . . . Highest Temperature 76 | . 76 19 . Average Temperature 22 | . 24 9 . Received Heat Transfer 295 | . 72 118 105 Siege Activations . | . . . . Robots Corrupted . | . . . . Combat Hostiles . | . . . . Parts Fried . | . . . . Impact Corruptions . | . . . . Robots Melted . | . . . . Combat Hostiles . | . . . . Parts Melted . | . . . . Heat Transferred 407 | . 407 . . Parts Sabotaged . | . . . . Parts Stolen . | . . . . Parts Stripped . | . . . . Power Chain Reactions . | . . . . Alert | -11 -10 -10 -10 ------- Run | Yrd Mat Min Sub Peak Influence 199 | . 103 199 . Initial . | . . . . Average 26 | . 34 24 . Maximum Alert Level . | . . . . Low Security (%) 100 | 100 100 100 . Level 1 . | . . . . Level 2 . | . . . . Level 3 . | . . . . Level 4 . | . . . . Level 5 . | . . . . High Security . | . . . . Max Security . | . . . . Squads Dispatched . | . . . . Investigation . | . . . . Extermination . | . . . . Reinforcement . | . . . . Assault . | . . . . Garrison . | . . . . Intercept . | . . . . Searches Triggered . | . . . . Construction Impeded . | . . . . Haulers Reinforced . | . . . . Active Scanning Responses . | . . . . Cargo Convoy Interrupts . | . . . . Stealth | -11 -10 -10 -10 --------- Run | Yrd Mat Min Sub Distress Signals 1 | . . 1 . Communications Jammed . | . . . . Distress Signals . | . . . . Times Spotted 26 | . 8 12 6 Peak Tracking Total 4 | . 3 4 2 Tactical Retreats 1 | . . 1 . Traps | -11 -10 -10 -10 ------- Run | Yrd Mat Min Sub Traps Triggered . | . . . . Indirectly . | . . . . Trap Hack Attempts . | . . . . Triggered . | . . . . Disarmed . | . . . . Reprogrammed . | . . . . Reused . | . . . . Traps Extracted . | . . . . Installed . | . . . . Triggered . | . . . . Machines | -11 -10 -10 -10 ---------- Run | Yrd Mat Min Sub Machines Disabled 3 | . . 3 . Max in Single Turn 1 | . . 1 . Machines Repaired . | . . . . Machines Dismantled . | . . . . Machines Sabotaged . | . . . . Overloaded Fab Kills . | . . . . Hacking | -11 -10 -10 -10 --------- Run | Yrd Mat Min Sub Machines Accessed 2 | . 2 . . Terminals 1 | . 1 . . Fabricators . | . . . . Repair Stations 1 | . 1 . . Recycling Units . | . . . . Scanalyzers . | . . . . Garrison Access . | . . . . Total Hacks 9 | . 9 . . Successful 6 | . 6 . . Failed 3 | . 3 . . Catastrophic 1 | . 1 . . Database Lockouts . | . . . . Manual . | . . . . Terminals 3 | . 3 . . Fabricators . | . . . . Repair Stations 6 | . 6 . . Recycling Units . | . . . . Scanalyzers . | . . . . Garrison Access . | . . . . Terminal Hacks 1 | . 1 . . Locate Traps 1 | . 1 . . Fabricator Hacks . | . . . . Repair Station Hacks 5 | . 5 . . Scan Component 3 | . 3 . . Repair 2 | . 2 . . Recycling Unit Hacks . | . . . . Scanalyzer . | . . . . Garrison Access Hacks . | . . . . Unauthorized Hacks . | . . . . Terminals . | . . . . Fabricators . | . . . . Repair Stations . | . . . . Recycling Units . | . . . . Scanalyzers . | . . . . Garrison Access . | . . . . Data Cores Recovered . | . . . . Used . | . . . . Hacking Detections 2 | . 2 . . Full Trace Events . | . . . . Feedback Events . | . . . . Feedback Blocked . | . . . . Robot Schematics Acquired . | . . . . Robots Built . | . . . . Authchips . | . . . . Time . | . . . . Total Robot Build Rating . | . . . . Part Schematics Acquired . | . . . . Parts Built . | . . . . Authchips . | . . . . Time . | . . . . Total Part Build Rating . | . . . . Parts Repaired 2 | . 2 . . Time 52 | . 52 . . Parts Recycled . | . . . . Recycled Matter . | . . . . Retrieved Matter . | . . . . Retrieved Components . | . . . . Parts Scanalyzed . | . . . . Part Schematics Acquired . | . . . . Parts Damaged . | . . . . Bothacking | -11 -10 -10 -10 ------------ Run | Yrd Mat Min Sub Used RIF Installer . | . . . . Robots Hacked . | . . . . Non-combat . | . . . . Combat . | . . . . Robot Hacks Applied . | . . . . Relay Couplers Released . | . . . . Fabnet Peak Effective % . | . . . . Robots Rewired . | . . . . Allies Hacked . | . . . . Hacks Repelled . | . . . . Allies | -11 -10 -10 -10 -------- Run | Yrd Mat Min Sub Total Allies . | . . . . Largest Group . | . . . . Highest-Rated Group . | . . . . Highest-Rated Ally . | . . . . Total Orders . | . . . . Ally Attacks . | . . . . Total Damage . | . . . . Kills . | . . . . Allies Corrupted . | . . . . Allies Melted . | . . . . Intel | -11 -10 -10 -10 ------- Run | Yrd Mat Min Sub Robot Analysis Total . | . . . . Derelict Logs Recovered 2 | . . 1 1 Drone Launches . | . . . . Drone Recoveries . | . . . . Exploration | -11 -10 -10 -10 ------------- Run | Yrd Mat Min Sub Turns Passed 3806 | 123 917 2382 384 Spaces Moved 2543 | 63 504 1727 249 Core 139 | 18 . 96 25 Treads . | . . . . Legs 2404 | 45 504 1631 224 Wheels . | . . . . Hover . | . . . . Flight . | . . . . Fastest Speed 50 | 50 120 50 50 Average Speed 125 | 179 154 116 116 Slowest Speed 200 | 200 190 120 150 Overloaded Moves . | . . . . Propulsion Burnouts . | . . . . Robots Hopped . | . . . . Cave-ins Triggered . | . . . . Exploration Rate (%) 45 | 5 67 100 9 Regions Visited 3 Branch Regions 2 Pre-discovered Areas 3 | . . 2 1 Known Exits Taken . | . . . . Unknown Exits Taken 3 | 1 1 1 . Scrap Searched 1 | . . 1 . Spaces Dug . | . . . . Terrain Destroyed 181 | . . 80 101 Melee . | . . . . Projectile . | . . . . AOE 181 | . . 80 101 Terrain Rammed . | . . . . Walls Destroyed . | . . . . Machines Disabled . | . . . . Actions | -11 -10 -10 -10 --------- Run | Yrd Mat Min Sub Total 3051 | 73 598 2053 327 Wait 375 | . 52 261 62 Move 2540 | 62 503 1726 249 Hop . | . . . . Pick Up 21 | 6 10 4 1 Fast Attach 13 | 1 3 8 1 Attach 13 | 4 4 5 . Detach . | . . . . Swap 4 | . 1 3 . Drop 14 | . 2 12 . Fire 67 | . 23 30 14 Melee 4 | . . 4 . Ram . | . . . . Kick . | . . . . Crush . | . . . . Escape Stasis . | . . . . Rewire . | . . . . Trap . | . . . . Miscellaneous . | . . . . Route ------- -11/Scrapyard -10/Materials (discovered 2 exits: *Mat / [*Min]) -10/Mines (discovered 3 exits: *Mat x2 / [*Sub]) -10/Subcaves History --------- Turn | Location | Event 17 | -11/Scrapyard | Discovered new exit (range 16) 124 | -11/Scrapyard | Entered Materials 317 | -10/Materials | Build established: Mutant 371 | -10/Materials | Discovered new exit (range 7) 546 | -10/Materials | Discovered new exit (range 15) 720 | -10/Materials | Repaired Aluminum Leg 748 | -10/Materials | Repaired Assault Rifle 1041 | -10/Materials | Entered Mines 1077 | -10/Mines | Learned location of Storage (-7) 1120 | -10/Mines | Assembled infested the area 1727 | -10/Mines | Lost 4 parts (2n2w) 1743 | -10/Mines | Core integrity fell below 50% 1980 | -10/Mines | Build established: Scavenger-Mutant 2030 | -10/Mines | Discovered new exit (range 9) 2050 | -10/Mines | Identified exit to Materials 2519 | -10/Mines | Discovered exit to Materials (range 11) 3415 | -10/Mines | Discovered new exit (range 6) 3423 | -10/Mines | Entered Subcaves 3525 | -10/Subcaves | Ambushed by Subdwellers from Twisted Machinery 3526 | -10/Subcaves | Shifting Twisted Machinery released Mak. Light Armor Plating 3566 | -10/Subcaves | Shifting Twisted Machinery released Battle Cannon 3588 | -10/Subcaves | Lost 4 parts (1p2n1w) 3592 | -10/Subcaves | Learned location of Zion (-6) 3764 | -10/Subcaves | Shifting Twisted Machinery released Mak. Kinetic Plating 3778 | -10/Subcaves | Shifting Twisted Machinery released Flamer 3784 | -10/Subcaves | Ambushed by Subdweller buried in earth 3787 | -10/Subcaves | Core integrity fell below 20% 3807 | -10/Subcaves | Destroyed by 0L-7F4(R) with Subdweller Beam Cannon Last Messages --------------- The unstable cave ceiling collapses. Sml. Laser fries itself beyond repair. Subatomizers dissect the Ion Engine. Acquired 29 matter. Acquired 16 matter. Battle Cannon falls loose from the Twisted Machinery. Acquired Aluminum Leg. Ion Engine fries itself beyond repair. The unstable cave ceiling collapses. Acquired derelict log, extracted data. World map updated: -6/Zion. The unstable cave ceiling collapses. Acquired Mak. Light Armor Plating. The unstable cave ceiling collapses. Mak. Kinetic Plating falls loose from the Twisted Machinery. The unstable cave ceiling collapses. Flamer falls loose from the Twisted Machinery. Mni. Grenade Launcher destroyed. Z7-XMN(R): "ARGHSUB!" The unstable cave ceiling collapses. Map ----- +----------------------------------------------------+ | ?????????????????## ?? ???????????????? | | ????????????????## =[ ??????????????????? | | ??????????????#?# """"% ??????? ???????????? | | ????????#???#???#" #??????? ???????????? | | ???????????????##" ??? ? ?????????????? | | ??????#?????#??#"" ###?????????????????? | | ????????##?????# " ????#???? ????????? | | ????????????#?## " ?#?#??#????????????? | | ????????#???#?##""" ####??#?##?#????????? | | ???????#?????##?#""" #?##?#??????????????? | | ???????##??#??##?#" ######????##?????????? | | ????????#??##?#? #"#" ##?##?#??????????????? | | ???????#??????# ""# ####?#??##??###???????? | | ?????#?#?##?###"""## #?#???#?###??????????? | | ????????#???### """ " ###?#??##????????????? | | ???????#?#???## """"R ##?###??#???????????? | | ??????????###?##"! ###????#????#????????? | | ???#????##????## R####?###??#??????????? | | ?????#?????#### ##??#??#????#???????? | | ?????????#??#####" ###??##?##?#?#???????? | | ?????????##???####" ;#?##???##????????????? | | ?????????##??### ##??##??????#?????????? | | ??????#?###?#### #?#????###??#?#???????? | | ??????????#???### #####?#?###?#?????????? | | ?????#????#?##### ##?###??###?#?????????? | | ?????#?##??#### @ #??#?##??#???????????? | | ???#?#?#?#?#??# ##???##?#####?????????? | | ?????#?##?#?#?## #?#######?????????????? | | ??????#?##?#???## ####?#########?????????? | | ??#?##?#?######## ##??#?##??#????????????? | | ????#??###?##### ##?#??##?####?????????? | | ????####?#?##?## #?#####?####??????????? | | ????#?####??##### ######??##?###?????????? | | ????#####?####### ###?#?##?###?#?????????? | | ???#######???#### #############??????????? | | ???####??######### ######?##??##??????????? | | ???#######?##??## ######?##?##?????????? | | ?????#??###?##?## ######?###??##????????? | | ????#####???##?## ##?########??#??#?????? | | ????#####?####?### #######?####???#??????? | | ???#???##?##?##### ### #?#####?#?#????#??? | | ???##?#??##?##### ### ###??#??"??#???? | | ???#?####?##?##### ##? ###### ??" ???? | | ????#?#####?###### ## ###?###"? ##? ? | | ???#???########## ### ##?#?#?#"" ? | | ????##?#?######### ### #######""" ??? | | ????#?###?####### ###?#?# "# #???? | | ?????###???##### ###### " ### # | | ????###?######## ######?? ? | | ???????#?####?#### ## ###" " | +----------------------------------------------------+ Best States ------------- Heat Dissipation 35 Energy Generation 10 Energy Capacity 250 Matter Stores 300 Matter Capacity 300 Sight Range 16 Terrain Scan Range 16 Terrain Scan Density 85 Evasion (%) 55 Targeting Accuracy 5 Item Schematics ----------------- None Robot Schematics ------------------ None Fabricated ------------ Nothing Alien Tech Used ----------------- None Achievements -------------- None Challenges ------------ None Game ------ Seed CarbideBiometalPurifier Manual? 0 Play Time 00:21:24 Cumulative 14.2 hours Start 2024.04.12 @ 12:58:11 End 2024.04.12 @ 13:17:47 Sessions 1 Manual Loads 0 Difficulty Rogue Special Mode None Game No. 29 Rogue 29 Adventurer 0 Explorer 0 Win Type - Total 0 Types 0/0/0/0/0/0/0/0/0 Lore% 20 Gallery% 19 Achievement% 19 Wizard Run 0 Options --------- Layout 0 ASCII 0 Keyboard 0 Movement Arrows Keybinds 0 Fullscreen 1 Font 18/SmallcapsGlow Map View 76x50 Zoom Use 0% Tactical HUD 0 Map Filters NONE Filters NONE Steam 1 RUN: e31f63a3-fe2a-434f-8308-6d411701fb21